fUSD/lending_fUSD_20240223
["ID","MTS","AMOUNT","RATE_DAILY","PERIOD"]
[315003998,1708726252330,-500.0,0.00028219,2]
[315003999,1708726252339,-500.0,0.00028219,2]
[315004000,1708726252349,-635.29576226,0.00028219,2]
[315004001,1708726252358,-500.0,0.00028219,2]
[315004002,1708726252367,-500.0,0.00028219,2]
[315004003,1708726252454,-206.72727922,0.00028219,2]
[315004004,1708726252463,-500.0,0.00028219,2]
[315004005,1708726252473,-500.0,0.00028219,2]
[315004006,1708726252483,-500.0,0.00028219,2]
[315004007,1708726252492,-500.0,0.00028219,2]
[315004008,1708726252502,-500.0,0.00028219,2]
[315004009,1708726252511,-500.0,0.00028219,2]
[315004010,1708726252520,-500.0,0.00028219,2]
[315004011,1708726252530,-682.08,0.00028219,2]
[315004012,1708726252539,-500.0,0.00028219,2]
[315004013,1708726252549,-500.0,0.00028219,2]
[315004014,1708726252558,-500.0,0.00028219,2]
[315004015,1708726252567,-500.0,0.00028219,2]
[315004016,1708726252576,-500.0,0.00028219,2]
[315004017,1708726252585,-500.0,0.00028219,2]
[315004018,1708726252594,-500.0,0.00028219,2]
[315004019,1708726252603,-500.0,0.00028219,2]
[315004020,1708726252612,-500.0,0.00028219,2]
[315004021,1708726252621,-3102.35,0.00028219,2]
[315004022,1708726252630,-500.0,0.00028219,2]
[315004023,1708726252639,-500.0,0.00028219,2]
[315004024,1708726252649,-390.6875,0.00028219,2]
[315004025,1708726252658,-500.0,0.00028219,2]
[315004026,1708726252667,-534.52,0.00028219,2]
[315004027,1708726252676,-500.0,0.00028219,2]
[315004028,1708726252685,-500.0,0.00028219,2]
[315004029,1708726252694,-500.0,0.00028219,2]
[315004030,1708726252703,-500.0,0.00028219,2]
[315004031,1708726252713,-500.0,0.00028219,2]
[315004032,1708726252723,-597.21,0.00028219,2]
[315004033,1708726252733,-500.0,0.00028219,2]
[315004034,1708726252742,-500.0,0.00028219,2]
[315004035,1708726252751,-500.0,0.00028219,2]
[315004036,1708726252760,-500.0,0.00028219,2]
[315004037,1708726252769,-500.0,0.00028219,2]
[315004038,1708726252779,-392.50230482,0.00028219,2]
[315004039,1708726252788,-308.38811446,0.00028219,2]
[315004040,1708726252801,-500.0,0.00028219,2]
[315004041,1708726252810,-500.0,0.00028219,2]
[315004042,1708726252819,-500.0,0.00028219,2]
[315004043,1708726252829,-521.86,0.00028219,2]
[315004044,1708726252838,-500.0,0.00028219,2]
[315004045,1708726252846,-500.0,0.00028219,2]
[315004046,1708726252856,-500.0,0.00028219,2]
[315004047,1708726252865,-500.0,0.00028219,2]
[315004048,1708726252874,-552.29,0.00028219,2]
[315004049,1708726252884,-500.0,0.00028219,2]
[315004050,1708726252893,-500.0,0.00028219,2]
[315004051,1708726252902,-500.0,0.00028219,2]
[315004052,1708726252911,-584.56,0.00028219,2]
[315004053,1708726252920,-500.0,0.00028219,2]
[315004054,1708726252930,-500.0,0.00028219,2]
[315004055,1708726252939,-711.3,0.00028219,2]
[315004056,1708726252948,-500.0,0.00028219,2]
[315004057,1708726252957,-500.0,0.00028219,2]
[315004058,1708726252968,-500.0,0.00028219,2]
[315004059,1708726252977,-500.0,0.00028219,2]
[315004060,1708726252985,-500.0,0.00028219,2]
[315004061,1708726252994,-500.0,0.00028219,2]
[315004062,1708726253003,-373.34030771,0.00028219,2]
[315004063,1708726253012,-685.81,0.00028219,2]
[315004064,1708726253022,-500.0,0.00028219,2]
[315004065,1708726253031,-500.0,0.00028219,2]
[315004066,1708726253041,-1524.14,0.00028219,2]
[315004067,1708726253050,-522.81,0.00028219,2]
[315004068,1708726253059,-830.74,0.00028219,2]
[315004069,1708726253069,-649.95,0.00028219,2]
[315004070,1708726253078,-607.97,0.00028219,2]
[315004071,1708726253088,-500.0,0.00028219,2]
[315004072,1708726253101,-500.0,0.00028219,2]
[315004073,1708726253110,-500.0,0.00028219,2]
[315004074,1708726253119,-500.0,0.00028219,2]
[315004075,1708726253128,-2019.37,0.00028219,2]
[315004076,1708726253138,-500.0,0.00028219,2]
[315004077,1708726253147,-500.0,0.00028219,2]
[315004078,1708726253156,-500.0,0.00028219,2]
[315004079,1708726253166,-500.0,0.00028219,2]
[315004080,1708726253175,-500.0,0.00028219,2]
[315004081,1708726253185,-500.0,0.00028219,2]
[315004082,1708726253194,-500.0,0.00028219,2]
[315004083,1708726253204,-1721.96,0.00028219,2]
[315004084,1708726253213,-500.0,0.00028219,2]
[315004085,1708726253224,-500.0,0.00028219,2]
[315004086,1708726253233,-991.14,0.00028219,2]
[315004087,1708726253242,-554.64,0.00028219,2]
[315004088,1708726253252,-500.0,0.00028219,2]
[315004089,1708726253262,-500.0,0.00028219,2]
[315004090,1708726253271,-500.0,0.00028219,2]
[315004091,1708726253280,-592.11832571,0.00028219,2]
[315004092,1708726253290,-2187.47,0.00028219,2]
[315004093,1708726253299,-500.0,0.00028219,2]
[315004094,1708726253308,-500.0,0.00028219,2]
[315004095,1708726253317,-500.0,0.00028219,2]
[315004096,1708726253327,-500.0,0.00028219,2]
[315004097,1708726253336,-500.0,0.00028219,2]
[315004098,1708726253345,-500.0,0.00028219,2]
[315004099,1708726253354,-730.28,0.0002828,2]
[315004100,1708726253363,-1679.97,0.00028292,2]
[315004101,1708726253372,-256.08,0.000283,2]
[315004102,1708726253381,-2509.03,0.00028347,2]
[315004103,1708726253390,-500.0,0.00028356,2]
[315004104,1708726253399,-500.0,0.00028356,2]
[315004105,1708726253409,-447.29,0.00028356,2]
[315004106,1708726253419,-500.0,0.00028356,2]
[315004107,1708726253428,-500.0,0.00028356,2]
[315004108,1708726253437,-500.0,0.00028356,2]
[315004109,1708726253446,-541.64,0.00028356,2]
[315004110,1708726253455,-500.0,0.00028356,2]
[315004111,1708726253464,-500.0,0.00028356,2]
[315004112,1708726253473,-198.17,0.00028356,2]
[315004113,1708726253482,-500.0,0.00028356,2]
[315004114,1708726253491,-500.0,0.00028356,2]
[315004115,1708726253500,-682.08,0.00028356,2]
[315004116,1708726253510,-500.0,0.00028356,2]
[315004117,1708726253518,-500.0,0.00028356,2]
[315004118,1708726253527,-503.47,0.00028356,2]
[315004119,1708726253536,-500.0,0.00028356,2]
[315004120,1708726253546,-403.4318319,0.00028356,2]
[315004121,1708726253555,-500.0,0.00028356,2]
[315004122,1708726253565,-500.0,0.00028356,2]
[315004123,1708726253574,-500.0,0.00028356,2]
[315004124,1708726253583,-3102.35,0.00028356,2]
[315004125,1708726253593,-516.10250406,0.00028356,2]
[315004126,1708726253603,-500.0,0.00028356,2]
[315004127,1708726253612,-500.0,0.00028356,2]
[315004128,1708726253621,-500.0,0.00028356,2]
[315004129,1708726253630,-500.0,0.00028356,2]
[315004130,1708726253639,-500.0,0.00028356,2]
[315004131,1708726253648,-500.0,0.00028356,2]
[315004132,1708726253658,-597.21,0.00028356,2]
[315004133,1708726253667,-345.66,0.00028356,2]
[315004134,1708726253676,-500.0,0.00028356,2]
[315004135,1708726253685,-500.0,0.00028356,2]
[315004136,1708726253694,-500.0,0.00028356,2]
[315004137,1708726253703,-500.0,0.00028356,2]
[315004138,1708726253712,-500.0,0.00028356,2]
[315004139,1708726253721,-521.86,0.00028356,2]
[315004140,1708726253730,-340.01,0.00028356,2]
[315004141,1708726253739,-500.0,0.00028356,2]
[315004142,1708726253749,-500.0,0.00028356,2]
[315004143,1708726253758,-500.0,0.00028356,2]
[315004144,1708726253766,-552.29,0.00028356,2]
[315004145,1708726253775,-500.0,0.00028356,2]
[315004146,1708726253784,-500.0,0.00028356,2]
[315004147,1708726253793,-500.0,0.00028356,2]
[315004148,1708726253803,-584.56,0.00028356,2]
[315004149,1708726253811,-500.0,0.00028356,2]
[315004150,1708726253820,-500.0,0.00028356,2]
[315004151,1708726253830,-711.3,0.00028356,2]
[315004152,1708726253839,-500.0,0.00028356,2]
[315004153,1708726253849,-500.0,0.00028356,2]
[315004154,1708726253858,-500.0,0.00028356,2]
[315004155,1708726253867,-500.0,0.00028356,2]
[315004156,1708726253876,-465.92514728,0.00028356,2]
[315004157,1708726253885,-500.0,0.00028356,2]
[315004158,1708726253894,-685.81,0.00028356,2]
[315004159,1708726253903,-500.0,0.00028356,2]
[315004160,1708726253912,-500.0,0.00028356,2]
[315004161,1708726253922,-1524.14,0.00028356,2]
[315004162,1708726253931,-522.81,0.00028356,2]
[315004163,1708726253941,-830.74,0.00028356,2]
[315004164,1708726253950,-649.95,0.00028356,2]
[315004165,1708726253960,-607.97,0.00028356,2]
[315004166,1708726253969,-500.0,0.00028356,2]
[315004167,1708726253978,-500.0,0.00028356,2]
[315004168,1708726253987,-577.89,0.00028356,2]
[315004169,1708726253996,-634.09098394,0.00028356,2]
[315004170,1708726254005,-2019.37,0.00028356,2]
[315004171,1708726254015,-500.0,0.00028356,2]
[315004172,1708726254024,-253.884495,0.00028356,2]
[315004173,1708726254033,-500.0,0.00028356,2]
[315004174,1708726254043,-500.0,0.00028356,2]
[315004175,1708726254052,-187.42,0.00028356,2]
[315004176,1708726254061,-500.0,0.00028356,2]
[315004177,1708726254070,-1721.96,0.00028356,2]
[315004178,1708726254081,-500.0,0.00028356,2]
[315004179,1708726254092,-182.14,0.00028356,2]
[315004180,1708726254104,-991.14,0.00028356,2]
[315004181,1708726254113,-500.0,0.00028356,2]
[315004182,1708726254123,-175.58,0.00028356,2]
[315004183,1708726254133,-2187.47,0.00028356,2]
[315004184,1708726254144,-500.0,0.00028356,2]
[315004185,1708726254153,-500.0,0.00028356,2]
[315004186,1708726254163,-500.0,0.00028356,2]
[315004187,1708726254173,-500.0,0.00028356,2]
[315004188,1708726254183,-500.0,0.00028356,2]
[315004189,1708726254192,-175.63,0.00028441,2]
[315004190,1708726254202,-500.0,0.00028493,2]
[315004191,1708726254212,-500.0,0.00028493,2]
[315004192,1708726254222,-500.0,0.00028493,2]
[315004193,1708726254231,-264.14,0.00028493,2]
[315004194,1708726254240,-500.0,0.00028493,2]
[315004195,1708726254250,-500.0,0.00028493,2]
[315004196,1708726254260,-244.85,0.00028493,2]
[315004197,1708726254269,-500.0,0.00028493,2]
[315004198,1708726254279,-500.0,0.00028493,2]
[315004199,1708726254288,-682.08,0.00028493,2]
[315004200,1708726254298,-500.0,0.00028493,2]
[315004201,1708726254307,-500.0,0.00028493,2]
[315004202,1708726254316,-500.0,0.00028493,2]
[315004203,1708726254325,-500.0,0.00028493,2]
[315004204,1708726254335,-500.0,0.00028493,2]
[315004205,1708726254344,-500.0,0.00028493,2]
[315004206,1708726254354,-3102.35,0.00028493,2]
[315004207,1708726254363,-500.0,0.00028493,2]
[315004208,1708726254373,-500.0,0.00028493,2]
[315004209,1708726254382,-500.0,0.00028493,2]
[315004210,1708726254392,-500.0,0.00028493,2]
[315004211,1708726254401,-500.0,0.00028493,2]
[315004212,1708726254411,-597.21,0.00028493,2]
[315004213,1708726254420,-500.0,0.00028493,2]
[315004214,1708726254430,-500.0,0.00028493,2]
[315004215,1708726254439,-500.0,0.00028493,2]
[315004216,1708726254449,-500.0,0.00028493,2]
[315004217,1708726254459,-500.0,0.00028493,2]
[315004218,1708726254469,-521.86,0.00028493,2]
[315004219,1708726254479,-500.0,0.00028493,2]
[315004220,1708726254489,-500.0,0.00028493,2]
[315004221,1708726254498,-500.0,0.00028493,2]
[315004222,1708726254508,-552.29,0.00028493,2]
[315004223,1708726254518,-500.0,0.00028493,2]
[315004224,1708726254527,-500.0,0.00028493,2]
[315004225,1708726254537,-500.0,0.00028493,2]
[315004226,1708726254546,-584.56,0.00028493,2]
[315004227,1708726254556,-500.0,0.00028493,2]
[315004228,1708726254566,-500.0,0.00028493,2]
[315004229,1708726254575,-711.3,0.00028493,2]
[315004230,1708726254585,-500.0,0.00028493,2]
[315004231,1708726254594,-500.0,0.00028493,2]
[315004232,1708726254604,-500.0,0.00028493,2]
[315004233,1708726254614,-500.0,0.00028493,2]
[315004234,1708726254623,-500.0,0.00028493,2]
[315004235,1708726254633,-685.81,0.00028493,2]
[315004236,1708726254643,-500.0,0.00028493,2]
[315004237,1708726254652,-500.0,0.00028493,2]
[315004238,1708726254662,-1524.14,0.00028493,2]
[315004239,1708726254672,-522.81,0.00028493,2]
[315004240,1708726254682,-830.74,0.00028493,2]
[315004241,1708726254691,-649.95,0.00028493,2]
[315004242,1708726254701,-607.97,0.00028493,2]
[315004243,1708726254711,-500.0,0.00028493,2]
[315004244,1708726254722,-500.0,0.00028493,2]
[315004245,1708726254731,-2019.37,0.00028493,2]
[315004246,1708726254741,-500.0,0.00028493,2]
[315004247,1708726254751,-500.0,0.00028493,2]
[315004248,1708726254761,-500.0,0.00028493,2]
[315004249,1708726254771,-444.51,0.00028493,2]
[315004250,1708726254781,-1721.96,0.00028493,2]
[315004251,1708726254791,-500.0,0.00028493,2]
[315004252,1708726254802,-991.14,0.00028493,2]
[315004253,1708726254811,-500.0,0.00028493,2]
[315004254,1708726254822,-500.0,0.00028493,2]
[315004255,1708726254831,-2187.47,0.00028493,2]
[315004256,1708726254841,-500.0,0.00028493,2]
[315004257,1708726254852,-500.0,0.00028493,2]
[315004258,1708726254862,-500.0,0.00028493,2]
[315004259,1708726254871,-299.51915892,0.000285,7]
[315004260,1708726254881,-2509.03,0.00028505,2]
[315004261,1708726254891,-494.15,0.0002863,2]
[315004262,1708726254901,-500.0,0.0002863,2]
[315004263,1708726254911,-500.0,0.0002863,2]
[315004264,1708726254920,-500.0,0.0002863,2]
[315004265,1708726254930,-500.0,0.0002863,2]
[315004266,1708726254940,-500.0,0.0002863,2]
[315004267,1708726254949,-500.0,0.0002863,2]
[315004268,1708726254959,-682.08,0.0002863,2]
[315004269,1708726254969,-645.8,0.0002863,2]
[315004270,1708726254979,-500.0,0.0002863,2]
[315004271,1708726254988,-500.0,0.0002863,2]
[315004272,1708726254998,-500.0,0.0002863,2]
[315004273,1708726255009,-3102.35,0.0002863,2]
[315004274,1708726255018,-500.0,0.0002863,2]
[315004275,1708726255028,-500.0,0.0002863,2]
[315004276,1708726255037,-500.0,0.0002863,2]
[315004277,1708726255047,-500.0,0.0002863,2]
[315004278,1708726255057,-415.01,0.0002863,2]
[315004279,1708726255067,-597.21,0.0002863,2]
[315004280,1708726255076,-500.0,0.0002863,2]
[315004281,1708726255087,-500.0,0.0002863,2]
[315004282,1708726255099,-500.0,0.0002863,2]
[315004283,1708726255108,-500.0,0.0002863,2]
[315004284,1708726255118,-500.0,0.0002863,2]
[315004285,1708726255128,-521.86,0.0002863,2]
[315004286,1708726255138,-500.0,0.0002863,2]
[315004287,1708726255148,-500.0,0.0002863,2]
[315004288,1708726255158,-500.0,0.0002863,2]
[315004289,1708726255167,-552.29,0.0002863,2]
[315004290,1708726255178,-500.0,0.0002863,2]
[315004291,1708726255188,-500.0,0.0002863,2]
[315004292,1708726255198,-500.0,0.0002863,2]
[315004293,1708726255207,-584.56,0.0002863,2]
[315004294,1708726255217,-500.0,0.0002863,2]
[315004295,1708726255227,-500.0,0.0002863,2]
[315004296,1708726255236,-711.3,0.0002863,2]
[315004297,1708726255245,-500.0,0.0002863,2]
[315004298,1708726255256,-500.0,0.0002863,2]
[315004299,1708726255266,-500.0,0.0002863,2]
[315004300,1708726255275,-500.0,0.0002863,2]
[315004301,1708726255285,-500.0,0.0002863,2]
[315004302,1708726255295,-685.81,0.0002863,2]
[315004303,1708726255305,-500.0,0.0002863,2]
[315004304,1708726255314,-500.0,0.0002863,2]
[315004305,1708726255324,-1524.14,0.0002863,2]
[315004306,1708726255334,-522.81,0.0002863,2]
[315004307,1708726255344,-830.74,0.0002863,2]
[315004308,1708726255354,-649.95,0.0002863,2]
[315004309,1708726255363,-607.97,0.0002863,2]
[315004310,1708726255373,-500.0,0.0002863,2]
[315004311,1708726255382,-500.0,0.0002863,2]
[315004312,1708726255392,-2019.37,0.0002863,2]
[315004313,1708726255402,-500.0,0.0002863,2]
[315004314,1708726255411,-500.0,0.0002863,2]
[315004315,1708726255421,-1721.96,0.0002863,2]
[315004316,1708726255431,-500.0,0.0002863,2]
[315004317,1708726255441,-991.14,0.0002863,2]
[315004318,1708726255451,-500.0,0.0002863,2]
[315004319,1708726255460,-500.0,0.0002863,2]
[315004320,1708726255470,-2187.47,0.0002863,2]
[315004321,1708726255480,-500.0,0.0002863,2]
[315004322,1708726255490,-500.0,0.0002863,2]
[315004323,1708726255500,-500.0,0.0002863,2]
[315004324,1708726255510,-2509.03,0.00028664,2]
[315004325,1708726255519,-11769.09848048,0.00028694,2]
[315004326,1708726255529,-8674.9237188,0.0002873,2]
[315004327,1708726255538,-500.0,0.00028767,2]
[315004328,1708726255548,-500.0,0.00028767,2]
[315004329,1708726255558,-164.26604367,0.00028767,2]
[315004330,1708726255567,-500.0,0.00028767,2]
[315004331,1708726255577,-500.0,0.00028767,2]
[315004332,1708726255586,-501.01039976,0.00028767,2]
[315004333,1708726255596,-500.0,0.00028767,2]
[315004334,1708726255605,-682.08,0.00028767,2]
[315004335,1708726255615,-500.0,0.00028767,2]
[315004336,1708726255624,-500.0,0.00028767,2]
[315004337,1708726255634,-3102.35,0.00028767,2]
[315004338,1708726255645,-213.35,0.00028767,2]
[315004339,1708726255655,-500.0,0.00028767,2]
[315004340,1708726255664,-500.0,0.00028767,2]
[315004341,1708726255674,-500.0,0.00028767,2]
[315004342,1708726255683,-597.21,0.00028767,2]
[315004343,1708726255693,-500.0,0.00028767,2]
[315004344,1708726255702,-500.0,0.00028767,2]
[315004345,1708726255711,-308.35481818,0.00028767,2]
[315004346,1708726255721,-500.0,0.00028767,2]
[315004347,1708726255731,-500.0,0.00028767,2]
[315004348,1708726255741,-521.86,0.00028767,2]
[315004349,1708726255750,-500.0,0.00028767,2]
[315004350,1708726255759,-500.0,0.00028767,2]
[315004351,1708726255769,-500.0,0.00028767,2]
[315004352,1708726255778,-552.29,0.00028767,2]
[315004353,1708726255787,-500.0,0.00028767,2]
[315004354,1708726255797,-584.56,0.00028767,2]
[315004355,1708726255806,-500.0,0.00028767,2]
[315004356,1708726255816,-711.3,0.00028767,2]
[315004357,1708726255825,-500.0,0.00028767,2]
[315004358,1708726255835,-421.17857836,0.00028767,2]
[315004359,1708726255845,-500.0,0.00028767,2]
[315004360,1708726255854,-500.0,0.00028767,2]
[315004361,1708726255863,-685.81,0.00028767,2]
[315004362,1708726255874,-500.0,0.00028767,2]
[315004363,1708726255884,-1524.14,0.00028767,2]
[315004364,1708726255894,-522.81,0.00028767,2]
[315004365,1708726255904,-830.74,0.00028767,2]
[315004366,1708726255913,-649.95,0.00028767,2]
[315004367,1708726255923,-607.97,0.00028767,2]
[315004368,1708726255933,-531.61129306,0.00028767,2]
[315004369,1708726255943,-500.0,0.00028767,2]
[315004370,1708726255953,-2019.37,0.00028767,2]
[315004371,1708726255963,-500.0,0.00028767,2]
[315004372,1708726255975,-1721.96,0.00028767,2]
[315004373,1708726255985,-500.0,0.00028767,2]
[315004374,1708726255995,-991.14,0.00028767,2]
[315004375,1708726256005,-500.0,0.00028767,2]
[315004376,1708726256015,-500.0,0.00028767,2]
[315004377,1708726256025,-2187.47,0.00028767,2]
[315004378,1708726256035,-437.61089818,0.00028767,2]
[315004379,1708726256045,-500.0,0.00028767,2]
[315004380,1708726256055,-500.0,0.00028767,2]
[315004381,1708726256065,-3460.20510023,0.00028769,2]
[315004382,1708726256075,-2509.03,0.00028822,2]
[315004383,1708726256086,-500.0,0.00028904,2]
[315004384,1708726256098,-500.0,0.00028904,2]
[315004385,1708726256109,-500.0,0.00028904,2]
[315004386,1708726256119,-500.0,0.00028904,2]
[315004387,1708726256128,-682.08,0.00028904,2]
[315004388,1708726256138,-500.0,0.00028904,2]
[315004389,1708726256148,-500.0,0.00028904,2]
[315004390,1708726256158,-3102.35,0.00028904,2]
[315004391,1708726256168,-500.0,0.00028904,2]
[315004392,1708726256320,-500.0,0.00028904,2]
[315004393,1708726256347,-500.0,0.00028904,2]
[315004394,1708726256357,-597.21,0.00028904,2]
[315004395,1708726256366,-500.0,0.00028904,2]
[315004396,1708726256375,-500.0,0.00028904,2]
[315004397,1708726256384,-500.0,0.00028904,2]
[315004398,1708726256393,-500.0,0.00028904,2]
[315004399,1708726256402,-521.86,0.00028904,2]
[315004400,1708726256411,-500.0,0.00028904,2]
[315004401,1708726256420,-500.0,0.00028904,2]
[315004402,1708726256429,-552.29,0.00028904,2]
[315004403,1708726256438,-500.0,0.00028904,2]
[315004404,1708726256447,-584.56,0.00028904,2]
[315004405,1708726256456,-500.0,0.00028904,2]
[315004406,1708726256465,-711.3,0.00028904,2]
[315004407,1708726256474,-500.0,0.00028904,2]
[315004408,1708726256483,-500.0,0.00028904,2]
[315004409,1708726256492,-500.0,0.00028904,2]
[315004410,1708726256501,-685.81,0.00028904,2]
[315004411,1708726256511,-500.0,0.00028904,2]
[315004412,1708726256520,-1524.14,0.00028904,2]
[315004413,1708726256529,-522.81,0.00028904,2]
[315004414,1708726256538,-830.74,0.00028904,2]
[315004415,1708726256547,-649.95,0.00028904,2]
[315004416,1708726256556,-607.97,0.00028904,2]
[315004417,1708726256565,-500.0,0.00028904,2]
[315004418,1708726256574,-2019.37,0.00028904,2]
[315004419,1708726256583,-500.0,0.00028904,2]
[315004420,1708726256593,-1721.96,0.00028904,2]
[315004421,1708726256602,-991.14,0.00028904,2]
[315004422,1708726256612,-500.0,0.00028904,2]
[315004423,1708726256621,-2187.47,0.00028904,2]
[315004424,1708726256630,-500.0,0.00028904,2]
[315004425,1708726256639,-500.0,0.00028904,2]
[315004426,1708726256648,-850.0,0.00029,3]
[315004427,1708726256657,-512.21,0.00029041,2]
[315004428,1708726256666,-216.96202189,0.00029041,2]
[315004429,1708726256675,-500.0,0.00029041,2]
[315004430,1708726256685,-682.08,0.00029041,2]
[315004431,1708726256694,-275.65001204,0.00029041,2]
[315004432,1708726256703,-500.0,0.00029041,2]
[315004433,1708726256712,-3102.35,0.00029041,2]
[315004434,1708726256722,-500.0,0.00029041,2]
[315004435,1708726256731,-500.0,0.00029041,2]
[315004436,1708726256740,-500.0,0.00029041,2]
[315004437,1708726256749,-597.21,0.00029041,2]
[315004438,1708726256759,-500.0,0.00029041,2]
[315004439,1708726256768,-500.0,0.00029041,2]
[315004440,1708726256777,-500.0,0.00029041,2]
[315004441,1708726256786,-500.0,0.00029041,2]
[315004442,1708726256795,-521.86,0.00029041,2]
[315004443,1708726256804,-500.0,0.00029041,2]
[315004444,1708726256814,-500.0,0.00029041,2]
[315004445,1708726256822,-552.29,0.00029041,2]
[315004446,1708726256831,-500.0,0.00029041,2]
[315004447,1708726256841,-584.56,0.00029041,2]
[315004448,1708726256850,-500.0,0.00029041,2]
[315004449,1708726256859,-711.3,0.00029041,2]
[315004450,1708726256868,-500.0,0.00029041,2]
[315004451,1708726256877,-500.0,0.00029041,2]
[315004452,1708726256886,-500.0,0.00029041,2]
[315004453,1708726256895,-685.81,0.00029041,2]
[315004454,1708726256904,-1524.14,0.00029041,2]
[315004455,1708726256914,-522.81,0.00029041,2]
[315004456,1708726256923,-830.74,0.00029041,2]
[315004457,1708726256933,-649.95,0.00029041,2]
[315004458,1708726256941,-607.97,0.00029041,2]
[315004459,1708726256951,-500.0,0.00029041,2]
[315004460,1708726256961,-2019.37,0.00029041,2]
[315004461,1708726256970,-500.0,0.00029041,2]
[315004462,1708726256980,-1721.96,0.00029041,2]
[315004463,1708726256989,-991.14,0.00029041,2]
[315004464,1708726256999,-500.0,0.00029041,2]
[315004465,1708726257008,-2187.47,0.00029041,2]
[315004466,1708726257018,-500.0,0.00029041,2]
[315004467,1708726257027,-500.0,0.00029041,2]
[315004468,1708726257036,-500.0,0.00029178,2]
[315004469,1708726257046,-682.08,0.00029178,2]
[315004470,1708726257055,-485.21258481,0.00029178,2]
[315004471,1708726257064,-3102.35,0.00029178,2]
[315004472,1708726257074,-500.0,0.00029178,2]
[315004473,1708726257083,-500.0,0.00029178,2]
[315004474,1708726257094,-500.0,0.00029178,2]
[315004475,1708726257104,-597.21,0.00029178,2]
[315004476,1708726257114,-500.0,0.00029178,2]
[315004477,1708726257122,-500.0,0.00029178,2]
[315004478,1708726257133,-500.0,0.00029178,2]
[315004479,1708726257142,-500.0,0.00029178,2]
[315004480,1708726257151,-521.86,0.00029178,2]
[315004481,1708726257160,-500.0,0.00029178,2]
[315004482,1708726257170,-500.0,0.00029178,2]
[315004483,1708726257180,-552.29,0.00029178,2]
[315004484,1708726257190,-500.0,0.00029178,2]
[315004485,1708726257199,-584.56,0.00029178,2]
[315004486,1708726257208,-439.36,0.00029178,2]
[315004487,1708726257217,-711.3,0.00029178,2]
[315004488,1708726257228,-500.0,0.00029178,2]
[315004489,1708726257237,-255.34425209,0.00029178,2]
[315004490,1708726257247,-685.81,0.00029178,2]
[315004491,1708726257258,-1524.14,0.00029178,2]
[315004492,1708726257269,-830.74,0.00029178,2]
[315004493,1708726257279,-522.81,0.00029178,2]
[315004494,1708726257288,-649.95,0.00029178,2]
[315004495,1708726257297,-607.97,0.00029178,2]
[315004496,1708726257306,-500.0,0.00029178,2]
[315004497,1708726257315,-2019.37,0.00029178,2]